bitfinex/quotes_ETHUSD_20251019
["timestamp","ask_amount","ask_price","bid_price","bid_amount"]
[1760891531226,0.1266,3974.2,3974.1,8.47503807]
[1760891532895,0.1266,3974.2,3974.1,12.28263807]
[1760891533102,0.001,3974.2,3974.1,12.40823807]
[1760891533622,0.001,3974.2,3974.1,1.20917661]
[1760891533830,0.1266,3974.2,3974.1,0.597]
[1760891534115,0.1266,3974.2,3974.1,3.11329299]
[1760891534302,0.1266,3974.2,3974.1,0.597]
[1760891534882,0.1266,3974.2,3974.1,3.11329299]
[1760891535923,0.1266,3974.2,3974.1,0.597]
[1760891536418,0.1266,3974.2,3973.8,3.176]
[1760891536623,0.1266,3974.2,3973.8,3.6189]
[1760891536789,0.001,3974.2,3973.9,0.4429]
[1760891538522,0.001,3974.2,3974.0,0.4429]
[1760891542894,0.001,3974.2,3973.8,3.176]
[1760891543310,0.001,3974.2,3973.8,3.6189]
[1760891545210,0.001,3974.2,3973.8,3.176]
[1760891545433,0.3764,3974.1,3973.8,3.176]
[1760891545757,0.001,3974.2,3973.8,3.176]
[1760891548357,0.3764,3974.1,3973.8,0.002]
[1760891548658,1.728,3973.9,3973.8,0.002]
[1760891548862,2.51641963,3973.9,3973.8,0.002]
[1760891549033,2.89281963,3973.9,3973.8,0.002]
[1760891558622,4.62081963,3973.9,3973.8,0.002]
[1760891569570,4.28826994,3973.9,3973.8,0.002]
[1760891569974,4.24441963,3973.9,3973.8,0.002]
[1760891571262,4.62081963,3973.9,3973.8,0.002]
[1760891571662,4.24441963,3973.9,3973.8,0.002]
[1760891571869,4.62081963,3973.9,3973.8,0.002]
[1760891572240,4.24441963,3973.9,3973.8,0.002]
[1760891572559,7.41741963,3973.9,3973.8,0.002]
[1760891573673,7.46126954,3973.9,3973.8,0.002]
[1760891574175,4.28826954,3973.9,3973.8,0.002]
[1760891574340,5.73326954,3973.9,3973.8,0.4724]
[1760891574675,5.68941963,3973.9,3973.8,0.4724]
[1760891574854,7.41741963,3973.9,3973.8,0.4724]
[1760891575049,7.41741963,3973.9,3973.8,0.002]
[1760891575458,7.79381963,3973.9,3973.8,0.002]
[1760891575856,7.41741963,3973.9,3973.8,0.002]
[1760891577676,7.46126805,3973.9,3973.8,0.002]
[1760891581914,7.83766805,3973.9,3973.8,0.002]
[1760891583101,11.7951756,3973.9,3973.8,0.002]
[1760891583315,12.96899757,3973.9,3973.8,0.002]
[1760891583870,4.24448296,3973.8,3973.1,0.002]
[1760891584090,4.24486298,3973.2,3973.1,0.002]
[1760891584370,7.41786298,3973.2,3973.1,0.002]
[1760891584701,7.89517815,3973.2,3973.1,0.002]
[1760891585675,8.01953671,3973.2,3973.1,0.002]
[1760891588199,4.24492632,3973.1,3973.0,1e-08]
[1760891588590,8.57883387,3973.1,3973.0,1e-08]
[1760891588792,8.72361631,3973.1,3973.0,1e-08]
[1760891594983,8.67975744,3973.1,3973.0,1e-08]
[1760891598234,8.72361672,3973.1,3973.0,1e-08]
[1760891601839,8.34721672,3973.1,3973.0,1e-08]
[1760891603008,11.52121672,3973.1,3973.0,1e-08]
[1760891603245,11.47735744,3973.1,3973.0,1e-08]
[1760891604940,11.85375744,3973.1,3973.0,1e-08]
[1760891605330,8.67975744,3973.1,3973.0,1e-08]
[1760891605528,11.85375744,3973.1,3973.0,1e-08]
[1760891606319,11.89761686,3973.1,3973.0,1e-08]
[1760891608169,7.94010931,3973.1,3973.0,1e-08]
[1760891608349,11.89761686,3973.1,3973.0,1e-08]
[1760891615242,7.56370931,3973.1,3973.0,1e-08]
[1760891615442,7.51984989,3973.1,3973.0,1e-08]
[1760891618968,7.56371288,3973.1,3973.0,1e-08]
[1760891621878,2.66271288,3973.1,3973.0,1e-08]
[1760891622077,5.83671288,3973.1,3973.0,0.45780001]
[1760891622281,7.56471288,3973.1,3973.0,0.45780001]
[1760891622569,2.51705303,3972.9,3972.7,0.002]
[1760891622776,2.51705303,3972.9,3972.8,0.4578]
[1760891622942,7.41905303,3972.9,3972.8,0.4578]
[1760891623142,7.87685303,3972.9,3972.8,0.4578]
[1760891625772,4.70285303,3972.9,3972.8,0.4578]
[1760891625980,7.87585303,3972.9,3972.8,0.4578]
[1760891626490,4.24511639,3972.8,3972.7,0.002]
[1760891626669,4.37071639,3972.8,3972.7,0.002]
[1760891627549,4.41457767,3972.8,3972.7,0.002]
[1760891628483,4.41457767,3972.8,3972.7,0.4598]
[1760891629150,4.37071639,3972.8,3972.7,0.4598]
[1760891629341,4.37071639,3972.8,3972.7,0.002]
[1760891629747,4.37071639,3972.8,3972.7,0.4598]
[1760891630259,7.54371639,3972.8,3972.7,0.4598]
[1760891630682,7.54371639,3972.8,3972.7,0.002]
[1760891634266,8.00151639,3972.8,3972.7,0.002]
[1760891635964,8.37791639,3972.8,3972.7,0.002]
[1760891636489,8.39411639,3972.8,3972.7,0.002]
[1760891637754,7.87591639,3972.8,3972.7,0.002]
[1760891637961,8.26851639,3972.8,3972.7,0.002]
[1760891638555,7.87591639,3972.8,3972.7,0.002]
[1760891638801,8.26851639,3972.8,3972.7,0.002]
[1760891644392,4.70291639,3972.8,3972.7,0.002]
[1760891644618,7.87591639,3972.8,3972.7,0.002]
[1760891645978,4.70291639,3972.8,3972.7,0.002]
[1760891646602,7.87591639,3972.8,3972.7,0.002]
[1760891647212,2.97491639,3972.8,3972.7,0.002]
[1760891647379,6.19177853,3972.8,3972.7,0.4363]
[1760891647579,7.91977853,3972.8,3972.7,0.4363]
[1760891648301,2.22966214,3972.8,3972.7,0.4363]
[1760891648462,4.74677853,3972.8,3972.7,0.4363]
[1760891648666,7.91977853,3972.8,3972.7,0.4363]
[1760891649290,7.91977853,3972.8,3972.7,0.002]
[1760891654094,4.74677853,3972.8,3972.7,0.002]
[1760891654298,7.91977853,3972.8,3972.7,0.002]
[1760891655201,2.22966214,3972.8,3972.7,0.002]
[1760891655390,7.46197853,3972.8,3972.7,0.002]
[1760891655596,7.46197853,3972.8,3972.7,0.4445]
[1760891656411,4.94486214,3972.8,3972.7,0.4445]
[1760891656576,4.28897853,3972.8,3972.7,0.002]
[1760891656914,7.46197853,3972.8,3972.7,0.4445]
[1760891663013,7.41811639,3972.8,3972.7,0.002]
[1760891663513,1.728,3972.8,3972.7,0.4445]
[1760891663742,4.901,3972.8,3972.7,0.4445]
[1760891665148,1.728,3972.8,3972.7,0.4445]
[1760891665717,4.24511639,3972.8,3972.7,0.4445]
[1760891668656,3.172,3972.9,3972.7,0.4445]
[1760891669261,0.02956717,3973.0,3972.7,0.002]
[1760891669437,0.02956717,3973.0,3972.8,0.4425]
[1760891670155,1.75756717,3973.0,3972.8,0.4425]
[1760891670661,1.75756717,3973.0,3972.7,0.002]
[1760891670662,0.1256,3972.8,3972.7,0.002]
[1760891671525,0.1256,3972.8,3972.7,0.4445]
[1760891672362,0.1256,3972.9,3972.7,2.96167975]
[1760891672549,0.1256,3972.9,3972.8,0.99059851]
[1760891672754,0.1256,3972.9,3972.8,3.5077149]
[1760891673144,0.1256,3972.9,3972.8,8.25994737]
[1760891673342,0.1256,3972.9,3972.8,8.89354737]
[1760891673559,0.02956717,3973.0,3972.9,3.15065303]
[1760891673870,0.02956717,3973.0,3972.9,5.30353517]
[1760891680774,0.001,3973.1,3973.0,3.15058968]
[1760891680942,0.001,3973.1,3973.0,3.60908968]
[1760891682970,0.001,3973.1,3973.0,6.78008968]
[1760891683495,0.001,3973.1,3973.0,6.90568968]
[1760891683657,0.001,3973.1,3973.0,8.54923526]
[1760891684970,0.001,3973.1,3973.0,8.09073526]
[1760891685300,0.001,3973.1,3973.0,8.54923526]
[1760891694705,0.001,3973.1,3973.0,12.50502117]
[1760891694901,0.001,3973.1,3973.0,12.60587222]
[1760891696142,0.001,3973.1,3973.0,16.42587222]
[1760891701749,0.001,3973.1,3973.0,8.20698631]
[1760891701916,0.001,3973.1,3973.0,7.45713526]
[1760891702510,0.3746,3973.1,3973.0,7.45713526]
[1760891702710,0.3746,3973.1,3972.9,0.002]
[1760891702913,0.3746,3973.1,3973.0,3.17]
[1760891703140,0.3746,3973.1,3972.9,0.002]
[1760891705523,0.001,3973.1,3972.9,0.002]
[1760891705844,0.3736,3973.0,3972.9,2.51905303]
[1760891706052,0.3736,3973.0,3972.9,0.002]
[1760891714338,0.001,3973.1,3972.9,0.002]
[1760891714739,0.001,3973.1,3972.9,2.54247755]
[1760891714947,0.3736,3973.0,3972.9,0.02542452]
[1760891715173,0.3736,3973.0,3972.9,0.002]
[1760891715838,0.001,3973.1,3972.9,0.002]
[1760891716164,0.3736,3973.0,3972.9,0.002]
[1760891718274,0.001,3973.1,3972.9,0.002]
[1760891718860,0.3736,3973.0,3972.9,0.002]
[1760891722867,0.001,3973.1,3972.9,2.51902399]
[1760891723072,0.3746,3973.1,3972.9,0.002]
[1760891724248,0.3736,3973.0,3972.9,0.002]
[1760891726163,2.89158968,3973.0,3972.9,0.002]
[1760891726364,8.67628058,3973.0,3972.9,0.002]
[1760891732815,8.67628058,3973.0,3972.3,1e-08]
[1760891732816,2.51736985,3972.4,3972.3,1e-08]
[1760891732997,7.41636985,3972.4,3972.3,1e-08]
[1760891733197,7.78996985,3972.4,3972.3,1e-08]
[1760891733521,8.24366985,3972.4,3972.3,1e-08]
[1760891737003,8.59542281,3972.4,3972.3,1e-08]
[1760891737407,12.55120872,3972.4,3972.3,1e-08]
[1760891737783,13.18480872,3972.4,3972.3,1e-08]
[1760891738010,13.47021488,3972.4,3972.3,1e-08]
[1760891739218,13.51409174,3972.4,3972.3,1e-08]
[1760891739796,13.90901631,3972.4,3972.3,1e-08]
[1760891739993,13.90901631,3972.4,3970.2,0.1332]
[1760891739994,2.51870135,3970.3,3970.2,0.1332]
[1760891740327,4.24670135,3970.3,3970.2,0.1332]
[1760891740731,2.51882824,3970.1,3969.8,0.4668]
[1760891741027,1.728,3970.1,3969.7,0.2142]
[1760891741225,4.24682824,3970.1,3970.0,1.4668]
[1760891743452,1.728,3970.1,3970.0,1.4668]
[1760891743799,2.48526883,3970.1,3970.0,1.4668]
[1760891745435,1.728,3970.1,3970.0,1.0]
[1760891745734,4.24682824,3970.1,3970.0,1.0]
[1760891745938,1.728,3970.1,3970.0,1.0]
[1760891746299,1.728,3970.1,3970.0,1.4668]
[1760891749961,1.728,3970.1,3970.0,4.6438]
[1760891750125,1.728,3970.4,3970.0,4.6438]
[1760891750321,1.728,3970.4,3970.1,0.4668]
[1760891751439,4.24664153,3970.4,3970.1,0.4668]
[1760891751846,4.24664153,3970.4,3970.0,4.177]
[1760891752049,4.24664153,3970.4,3970.0,4.6438]
[1760891752431,1.728,3970.2,3970.0,4.177]
[1760891753072,1.728,3970.3,3970.0,4.177]
[1760891753666,2.51871483,3970.3,3970.0,1.0]
[1760891753833,2.51871483,3970.3,3970.1,3.176]
[1760891754228,1.728,3970.3,3970.1,3.176]
[1760891755466,1.728,3970.3,3970.0,1.0]
[1760891755467,0.1256,3970.1,3970.0,1.0]
[1760891755673,0.1256,3970.1,3970.0,4.176]
[1760891757254,0.1256,3970.1,3970.0,4.6428]
[1760891758783,0.1256,3970.1,3970.0,4.176]
[1760891759581,0.1256,3970.1,3970.0,4.6428]
[1760891759761,0.1256,3970.1,3970.0,1.4668]
[1760891759963,0.1256,3970.1,3970.0,4.6428]
[1760891760492,2.96487829,3970.5,3970.0,1.0]
[1760891760693,0.75728603,3970.1,3970.0,1.0]
[1760891761060,3.27611427,3970.1,3970.0,1.0]
[1760891761386,3.72241427,3970.1,3970.0,1.0]
[1760891761774,3.72241427,3970.1,3970.0,1.002]
[1760891762378,1.20358603,3970.1,3970.0,1.002]
[1760891762583,3.72241427,3970.1,3970.0,1.002]
[1760891763990,5.45041427,3970.1,3970.0,1.002]
[1760891767193,2.48528603,3970.1,3970.0,1.002]
[1760891767383,5.45041427,3970.1,3970.0,1.002]
[1760891767588,2.48528603,3970.1,3970.0,1.002]
[1760891767771,5.00411427,3970.1,3970.0,1.002]
[1760891769050,2.48528603,3970.1,3970.0,1.002]
[1760891770282,1.728,3970.1,3970.0,1.438]
[1760891770684,0.75726692,3970.4,3970.0,1.4758]
[1760891770886,2.48526692,3970.4,3970.0,1.4758]
[1760891771082,2.51862414,3970.5,3970.0,1.002]
[1760891771272,4.24652518,3970.6,3970.1,0.4738]
[1760891771594,3.27583527,3970.5,3970.0,1.002]
[1760891771799,1.728,3970.4,3970.1,0.4738]
[1760891772157,0.1256,3970.1,3970.0,1.002]
[1760891774707,3.3954,3971.8,3970.1,0.6336]
[1760891775002,3.176,3972.0,3970.9,4.75716779]
[1760891775165,3.176,3972.0,3971.0,2.99205318]
[1760891775166,2.51770627,3971.9,3971.0,2.99205318]
[1760891775364,2.51770627,3971.9,3971.1,2.65139144]
[1760891775592,1.728,3971.9,3971.1,2.65139144]
[1760891775793,5.69363168,3972.0,3971.1,0.1332]
[1760891775794,3.176,3972.0,3971.1,0.1332]
[1760891775976,5.69362689,3972.0,3971.2,0.4738]
[1760891776293,1.728,3971.9,3971.2,2.99191487]
[1760891776594,0.001,3972.3,3971.8,2.51774207]
[1760891776767,0.001,3972.3,3971.6,2.51787692]
[1760891777081,0.001,3972.3,3971.7,2.51780544]
[1760891777314,0.001,3972.3,3971.6,2.51786679]
[1760891777617,0.001,3972.3,3971.7,2.51781325]
[1760891778215,0.001,3972.3,3971.7,2.99161325]
[1760891779019,0.001,3972.3,3971.7,2.99156409]
[1760891779214,0.001,3972.3,3971.8,2.51772597]
[1760891779516,0.001,3972.3,3971.8,2.99153523]
[1760891779702,0.001,3972.3,3972.2,2.5174966]
[1760891780017,0.001,3972.3,3972.2,3.179]
[1760891780221,0.001,3972.3,3972.2,6.1702966]
[1760891780518,0.001,3972.3,3972.2,7.03908109]
[1760891782311,0.001,3972.3,3972.2,7.67268109]
[1760891783104,0.001,3972.3,3972.2,7.19788109]
[1760891783603,0.001,3972.3,3970.8,0.1332]
[1760891783802,1.728,3969.0,3967.1,7.51200204]
[1760891784007,0.2194,3967.2,3967.1,3.00010702]
[1760891784201,13.79064823,3967.2,3967.1,3.00010702]
[1760891784412,4.24905821,3966.6,3965.5,3.243]
[1760891784722,1.728,3966.4,3965.5,3.7168]
[1760891784887,0.53503004,3966.3,3965.5,3.7168]
[1760891785093,0.53503004,3966.2,3965.5,3.7168]
[1760891785322,0.53503004,3966.1,3965.5,3.7168]
[1760891785518,0.53503004,3966.1,3965.0,0.3271]
[1760891785721,0.53503004,3966.1,3966.0,2.10683789]
[1760891786084,0.53503004,3966.1,3966.0,2.79132168]
[1760891786310,0.53503004,3966.1,3966.0,5.56452168]
[1760891786514,0.53503004,3967.1,3966.0,8.55974631]
[1760891786709,0.53503004,3967.0,3966.1,0.6753]
[1760891786896,0.53503004,3966.9,3966.1,0.6753]
[1760891787108,0.53503004,3966.8,3966.2,1.09778217]
[1760891787316,0.53503004,3966.7,3966.3,1.1074]
[1760891787513,0.53503004,3967.7,3966.6,0.6336]
[1760891787724,0.53503004,3967.6,3967.3,2.52054928]
[1760891788023,0.53503004,3967.8,3967.5,0.2015]
[1760891788224,0.13169391,3967.9,3967.5,3.11459483]
[1760891788556,0.13169391,3967.9,3967.7,2.52033142]
[1760891788894,0.13169391,3967.9,3967.8,0.4738]
[1760891790198,0.53503004,3968.4,3967.8,0.4738]
[1760891790521,0.53503004,3968.7,3967.9,3.252]
[1760891790730,0.53503004,3968.6,3967.9,3.87661314]
[1760891790895,0.53503004,3968.5,3967.9,3.87661314]
[1760891791227,0.53503004,3968.4,3967.9,3.87661314]
[1760891791527,0.53503004,3968.7,3967.9,3.87661314]
[1760891791827,0.53503004,3968.6,3967.9,3.87661314]
[1760891792022,0.53503004,3968.5,3968.0,0.63969446]
[1760891792194,0.53503004,3968.7,3968.0,0.63969446]
[1760891792411,2.51984585,3968.5,3968.1,3.251]
[1760891792739,0.96783004,3968.4,3968.2,3.251]
[1760891792942,0.53503004,3968.3,3968.2,3.251]
[1760891793125,0.4328,3968.4,3968.2,3.251]
[1760891793738,0.96783004,3968.4,3968.2,3.251]
[1760891793921,0.53503004,3968.3,3968.2,3.251]
[1760891794121,0.4328,3968.4,3968.2,3.251]
[1760891794524,0.96783004,3968.4,3968.2,3.251]
[1760891794837,0.53503004,3968.4,3968.2,3.251]
[1760891795044,3.05482319,3968.6,3968.2,3.251]
[1760891795243,0.98073004,3968.5,3968.2,3.251]
[1760891796441,3.50057653,3968.5,3968.2,3.251]
[1760891796644,0.53503004,3968.4,3968.2,3.251]
[1760891796820,0.53503004,3968.5,3968.2,3.251]
[1760891797025,2.51971678,3968.7,3968.2,3.251]
[1760891797331,2.51985472,3968.5,3968.2,3.251]
[1760891797539,0.53503004,3968.4,3968.2,3.251]
[1760891798047,3.05482175,3968.6,3968.2,3.251]
[1760891798251,0.53503004,3968.5,3968.2,3.251]
[1760891798936,3.05488084,3968.5,3968.2,3.251]
[1760891799137,0.53503004,3968.4,3968.2,3.251]
[1760891801758,0.53503004,3968.5,3968.2,3.251]
[1760891803029,3.05490099,3968.5,3968.2,3.251]
[1760891803252,0.53503004,3968.4,3968.2,3.251]
[1760891804361,0.53503004,3968.5,3968.2,3.251]
[1760891804665,0.53503004,3968.6,3968.2,3.251]
[1760891804881,0.53503004,3968.7,3968.2,3.251]
[1760891805159,0.53503004,3968.6,3968.3,0.4358]
[1760891805366,0.53503004,3968.5,3968.2,3.251]
[1760891805529,3.0547485,3968.7,3968.2,3.6868]
[1760891805733,0.53503004,3968.6,3968.2,3.6868]
[1760891806227,0.53503004,3968.5,3968.2,3.6868]
[1760891806944,0.53503004,3968.7,3968.2,3.6868]
[1760891807138,0.53503004,3968.6,3968.2,3.6868]
[1760891807369,0.53503004,3968.5,3968.2,3.251]
[1760891807575,0.53503004,3968.4,3968.2,3.251]
[1760891807792,0.53503004,3968.3,3968.2,3.251]
[1760891807995,2.26303004,3968.6,3968.2,3.251]
[1760891808159,0.53503004,3968.5,3968.2,3.251]
[1760891808365,0.53503004,3968.4,3968.2,3.251]
[1760891808563,0.53242806,3968.3,3968.2,3.251]
[1760891809398,0.1256,3968.5,3968.4,2.51990726]
[1760891809693,0.65802806,3968.5,3968.4,2.95570726]
[1760891810201,0.1256,3968.5,3968.4,2.95570726]
[1760891810361,0.65802806,3968.5,3968.4,2.95570726]
[1760891811698,0.53242806,3968.5,3968.1,0.002]
[1760891811883,0.2166,3968.8,3968.1,3.24]
[1760891811884,0.53242806,3968.4,3968.1,3.24]
[1760891812061,0.53242806,3968.3,3968.1,3.24]
[1760891812262,0.53242806,3968.2,3968.1,3.24]
[1760891813068,0.53242806,3968.2,3968.1,0.002]
[1760891813271,0.53242806,3968.2,3967.8,0.002]
[1760891813610,2.23577013,3968.2,3968.1,3.24]
[1760891813798,2.32718111,3968.2,3968.1,3.24]
[1760891814099,2.32718111,3968.2,3967.8,2.52226869]
[1760891814395,0.53711098,3968.1,3967.9,3.239]
[1760891814569,0.53711098,3968.0,3967.9,3.239]
[1760891815577,2.32718111,3968.0,3967.9,3.239]
[1760891816200,0.53711098,3968.0,3967.9,3.238]
[1760891816405,2.33248225,3968.0,3967.9,3.238]
[1760891817412,1.728,3968.4,3967.9,0.51260729]
[1760891817708,0.4457,3968.4,3968.0,3.237]
[1760891819709,1.729,3968.5,3968.0,3.237]
[1760891819878,2.1747,3968.5,3968.0,3.237]
[1760891820281,0.4467,3968.5,3968.0,3.237]
[1760891820476,0.001,3968.5,3968.0,3.237]
[1760891820779,0.4457,3968.4,3968.0,3.237]
[1760891821407,0.001,3968.5,3968.0,3.237]
[1760891821612,0.4467,3968.5,3968.0,3.237]
[1760891822279,0.1256,3968.0,3967.9,2.5202203]
[1760891822484,0.1256,3968.0,3967.9,5.7542203]
[1760891822684,0.1256,3968.0,3967.9,3.234]
[1760891823507,0.1256,3968.0,3967.9,5.7542248]
[1760891824096,0.1256,3968.0,3967.9,6.1900248]
[1760891827990,0.1256,3968.0,3967.9,2.9560248]
[1760891828294,0.1256,3968.0,3967.9,6.1870248]
[1760891828685,0.1256,3968.0,3967.9,2.9560248]
[1760891829016,0.1256,3968.0,3967.9,6.1870248]
[1760891830298,0.001,3968.5,3967.9,6.1870248]
[1760891830299,0.001,3968.5,3968.4,2.51990726]
[1760891830721,0.001,3968.5,3968.4,2.97460726]
[1760891832499,0.001,3968.5,3968.4,2.51990726]
[1760891833528,0.001,3968.5,3968.4,2.97460726]
[1760891835931,0.001,3968.5,3968.4,2.51990726]
[1760891837241,0.1256,3968.4,3967.9,0.002]
[1760891837528,0.4694,3968.3,3967.9,1.264]
[1760891837700,0.4694,3968.2,3967.9,1.264]
[1760891837903,0.4694,3968.1,3967.9,0.002]
[1760891838125,0.4694,3968.0,3967.9,0.002]
[1760891844948,0.94114393,3968.0,3967.9,0.002]
[1760891845149,4.71756129,3968.0,3967.9,0.002]
[1760891845724,2.1974,3968.0,3967.9,0.002]
[1760891847021,4.71756129,3968.0,3967.9,0.002]
[1760891847553,2.1974,3968.0,3967.9,0.002]
[1760891848921,3.226,3968.5,3967.9,0.002]
[1760891849123,0.001,3968.5,3967.9,0.002]
[1760891849343,0.4704,3968.5,3967.9,0.002]
[1760891849747,0.4704,3968.5,3967.9,2.5221716]
[1760891850117,0.4704,3968.5,3968.0,2.52014847]
[1760891850539,0.4704,3968.5,3968.1,0.2015]
[1760891850540,0.001,3968.5,3968.1,0.2015]
[1760891850724,0.001,3968.5,3968.1,2.72154395]
[1760891850925,0.001,3968.5,3968.2,0.31782439]
[1760891851154,0.001,3968.5,3968.2,0.77252439]
[1760891851628,0.001,3968.5,3968.3,2.51997076]
[1760891851827,0.001,3968.5,3968.4,2.51990726]
[1760891855566,0.001,3968.5,3968.4,2.99150726]
[1760891855931,0.001,3968.5,3968.4,3.29434051]
[1760891856131,0.001,3968.5,3968.4,2.82274051]
[1760891858072,0.001,3968.5,3968.4,6.04074051]
[1760891859746,0.001,3968.5,3968.4,3.218]
[1760891860275,0.001,3968.5,3968.4,5.73790726]
[1760891860476,0.1266,3968.5,3968.4,18.2433986]
[1760891860658,0.001,3968.5,3968.4,18.8769986]
[1760891863157,0.001,3968.5,3968.4,18.8759986]
[1760891863350,0.001,3968.5,3968.4,21.0675334]
[1760891866378,0.001,3968.5,3968.4,21.19339405]
[1760891866751,0.001,3968.5,3968.4,21.0675334]
[1760891868369,0.001,3968.5,3968.4,22.7955334]
[1760891870477,0.001,3968.5,3968.4,22.9211334]
[1760891871314,0.001,3968.5,3968.4,4.83704206]
[1760891871517,0.001,3968.5,3968.4,5.75810633]
[1760891871674,0.001,3968.5,3968.4,2.51990726]
[1760891871870,0.001,3968.5,3968.4,5.73390726]
[1760891872713,0.001,3968.5,3968.4,6.36750726]
[1760891873302,0.001,3968.5,3968.4,6.83910726]
[1760891873479,0.001,3968.5,3968.4,7.82695292]
[1760891874575,0.001,3968.5,3968.4,7.35535292]
[1760891874779,0.001,3968.5,3968.4,11.32072661]
[1760891877823,0.001,3968.5,3968.4,17.0141003]
[1760891878121,0.001,3968.5,3968.4,13.04872661]
[1760891878292,0.001,3968.5,3968.4,9.83472661]
[1760891878621,0.001,3968.5,3968.4,17.4857003]
[1760891878916,0.001,3968.5,3968.4,14.31311068]
[1760891881388,0.001,3968.5,3968.4,14.43871068]
[1760891882690,0.001,3968.5,3968.4,17.09371068]
[1760891882889,0.001,3968.5,3968.4,14.43871068]
[1760891883627,0.001,3968.5,3968.4,18.25871068]
[1760891884225,0.001,3968.5,3968.4,14.57311068]
[1760891884522,0.001,3968.5,3968.4,17.78511068]
[1760891884681,2.97485678,3968.5,3967.5,0.002]
[1760891884880,0.2213,3967.9,3967.5,0.002]
[1760891885297,0.6654,3967.9,3967.6,3.232]
[1760891887430,0.6654,3967.9,3967.6,5.75238655]
[1760891887933,0.6654,3967.9,3967.6,3.232]
[1760891888496,0.98394599,3967.9,3967.5,0.002]
[1760891889021,3.1856248,3967.9,3967.5,0.002]
[1760891889223,0.6654,3967.9,3967.5,0.002]
[1760891890127,0.6664,3967.9,3967.5,0.002]
[1760891890515,3.1866248,3967.9,3967.5,0.002]
[1760891891538,3.1866248,3967.9,3967.8,2.52228832]
[1760891891539,0.2223,3967.9,3967.8,2.52228832]
[1760891891746,0.6861,3967.9,3967.8,0.002]
[1760891892200,0.001,3967.9,3967.8,2.52228832]
[1760891893966,0.001,3967.9,3967.8,4.01117985]
[1760891894470,0.001,3967.9,3967.8,3.98597697]
[1760891895441,0.001,3967.9,3967.8,4.01117985]
[1760891895771,0.001,3967.9,3967.8,4.58197697]
[1760891895928,0.001,3967.9,3967.8,9.36533761]
[1760891896129,0.001,3967.9,3967.8,9.34013473]
[1760891896324,0.001,3967.9,3967.8,4.58197697]
[1760891896556,0.001,3967.9,3967.8,9.34013473]
[1760891897335,0.001,3967.9,3967.8,12.57113473]
[1760891899428,0.001,3967.9,3967.8,9.34013473]
[1760891899634,0.001,3967.9,3967.8,12.56913473]
[1760891899848,0.001,3967.9,3967.8,14.29713473]
[1760891908013,0.001,3967.9,3967.8,16.95213473]
[1760891910003,0.001,3967.9,3967.8,17.45962313]
[1760891915939,0.001,3967.9,3967.8,9.57606537]
[1760891916126,0.001,3967.9,3967.8,14.32422313]
[1760891917940,0.001,3967.9,3967.8,16.97922313]
[1760891919143,0.001,3967.9,3967.8,13.81573473]
[1760891921538,0.001,3967.9,3967.8,16.47073473]
[1760891922520,0.001,3967.9,3967.8,16.91573473]
[1760891926155,0.001,3967.9,3967.8,16.47073473]
[1760891927117,0.001,3967.9,3967.8,16.91573473]
[1760891927757,0.001,3968.3,3968.2,4.88163427]
[1760891927957,0.001,3968.3,3968.2,12.87899237]
[1760891928175,0.001,3968.3,3968.2,13.42439203]
[1760891928469,0.001,3968.3,3968.2,12.97939203]
[1760891929934,0.001,3968.9,3968.8,3.15325329]
[1760891930143,0.001,3968.9,3968.8,8.81234908]
[1760891930343,0.001,3968.9,3968.8,8.78715255]
[1760891930672,0.001,3968.9,3968.8,5.57415255]
[1760891930857,0.001,3969.3,3969.2,4.88099937]
[1760891931060,0.001,3969.3,3969.2,12.98075713]
[1760891931271,0.001,3969.3,3969.2,14.85331289]
[1760891931781,0.001,3969.3,3969.2,16.14331289]
[1760891931952,0.001,3969.3,3969.2,16.58831289]
[1760891932153,0.001,3969.3,3969.2,19.24331289]
[1760891932762,0.001,3969.3,3969.2,16.58831289]
[1760891933787,0.001,3969.3,3969.2,16.14331289]
[1760891934248,0.001,3969.3,3969.2,12.92731289]
[1760891934450,0.001,3969.3,3969.2,16.14131289]
[1760891935646,0.001,3969.3,3969.2,16.58631289]
[1760891936048,0.4387,3970.3,3970.0,3.15249168]
[1760891936248,0.4387,3970.3,3970.2,3.15236479]
[1760891936456,0.2314,3971.0,3970.9,3.15192078]
[1760891936792,0.2314,3971.0,3970.9,6.36492078]
[1760891937144,0.6701,3971.0,3970.9,6.36492078]
[1760891941075,0.6701,3971.0,3970.5,0.1256]
[1760891941370,0.1256,3970.7,3970.5,3.212]
[1760891941574,0.4387,3970.6,3970.5,3.212]
[1760891942373,0.1256,3970.5,3970.2,2.51874876]
[1760891942698,0.4387,3970.4,3970.1,3.212]
[1760891942901,0.4387,3970.3,3970.0,3.212]
[1760891943195,0.4387,3970.2,3970.0,3.212]
[1760891943497,0.4387,3970.1,3969.7,3.212]
[1760891943692,0.2269,3969.8,3969.7,3.212]
[1760891943897,0.6656,3969.8,3969.7,2.51908204]
[1760891944384,0.6656,3969.8,3969.7,5.73208204]
[1760891945499,0.6681,3969.8,3969.7,5.73108204]
[1760891948816,0.2269,3969.8,3969.7,6.36468204]
[1760891948973,0.4412,3970.1,3970.0,2.51889168]
[1760891949303,0.2314,3971.0,3970.5,2.5185651]
[1760891949509,0.2314,3971.0,3970.6,2.51849786]
[1760891949676,0.2314,3971.0,3970.5,5.72955975]
[1760891949876,0.4412,3970.9,3970.5,5.72955975]
[1760891950085,0.2314,3971.0,3970.5,5.72955975]
[1760891950294,0.4412,3970.8,3970.6,2.51850062]